[Event "Teplice Open 2019"]
[Site "Teplice"]
[Date "2019.06.15"]
[Round "1.8"]
[White "Riebel, Werner"]
[Black "Lagarde, Maxime"]
[Result "0-1"]
[ECO "D00"]
[WhiteElo "2115"]
[BlackElo "2599"]
[Annotator "ChessBase"]
[PlyCount "58"]
[EventDate "2019.06.15"]
[EventType "swiss"]
[EventCountry "CZE"]
[SourceTitle "playchess.com"]
[Source "ChessBase"]
[SourceQuality "1"]
[TimeControl "40/5400+30:1800+30"]

1. d4 {[%emt 0:00:00]} Nc6 {[%emt 0:00:00]} 2. Bg5 {[%emt 0:00:19]} d5 {[%emt 0:03:25]} 3. e3 {[%emt 0:01:24]} Bf5 {[%emt 0:00:47]} 4. c4 {[%emt 0:04:38]} f6 {[%emt 0:01:32]} 5. cxd5 {[%emt 0:01:48]} Qxd5 {[%emt 0:00:52]} 6. Nc3 {[%emt 0:00:29]} Qa5 {[%emt 0:00:55]} 7. Bh4 {[%emt 0:00:46]} O-O-O {[%emt 0:01:08]} 8. Qb3 {[%emt 0:03:03]} e5 {[%emt 0:01:39]} 9. dxe5 {[%emt 0:03:29]} Nxe5 {[%emt 0:02:03]} 10. Bg3 {[%emt 0:01:42]} Bb4 {[%emt 0:03:14]} 11. Bxe5 {[%emt 0:01:51]} fxe5 {[%emt 0:00:08]} 12. Bc4 {[%emt 0:00:48]} Be4 {[%emt 0:06:55]} 13. Nge2 {[%emt 0:04:16]} Bxg2 {[%emt 0:01:00]} 14. Rg1 {[%emt 0:00:34]} Bf3 {[%emt 0:01:53]} 15. Rxg7 {[%emt 0:01:28]} Nf6 {[%emt 0:00:27]} 16. a3 {[%emt 0:03:21]} Bxe2 {[%emt 0:03:04]} 17. Bxe2 {[%emt 0:05:29]} Bxc3+ {[%emt 0:00:43]} 18. bxc3 {[%emt 0:01:17]} Rd6 {[%emt 0:03:09]} 19. Rc1 {[%emt 0:07:37]} Rhd8 {[%emt 0:02:02]} 20. Rd1 {[%emt 0:03:37]} Rxd1+ {[%emt 0:06:04]} 21. Bxd1 {[%emt 0:00:12]} Kb8 {[%emt 0:06:23]} 22. Be2 {[%emt 0:05:45]} e4 {[%emt 0:06:29]} 23. Kf1 {[%emt 0:10:34]} Qe5 {[%emt 0:03:41]} 24. Ba6 {[%emt 0:02:56]} Qd5 {[%emt 0:01:32]} 25. Bc4 {[%emt 0:00:41]} Qh5 {[%emt 0:02:03]} 26. Be2 {[%emt 0:01:22]} Qxh2 {[%emt 0:02:38]} 27. Ba6 {[%emt 0:01:43]} b6 {[%emt 0:01:08]} 28. Qf7 {[%emt 0:02:56]} Qh1+ {[%emt 0:00:09] Qb3 Qh2 Qa4 Qh3+} 29. Ke2 {[%emt 0:00:08]} Nd7 {[%emt 0:00:16] Qc6 Nf6 Qa4 Qh2 Kf1} 0-1

[Event "Teplice Open 2019"]
[Site "Teplice"]
[Date "2019.06.15"]
[Round "1.10"]
[White "Kastek, Thomas"]
[Black "Hracek, Zbynek"]
[Result "0-1"]
[ECO "A36"]
[WhiteElo "2112"]
[BlackElo "2582"]
[Annotator "RC"]
[PlyCount "64"]
[EventDate "2019.06.15"]
[EventType "swiss"]
[EventCountry "CZE"]
[SourceTitle "playchess.com"]
[Source "ChessBase"]
[SourceQuality "1"]
[TimeControl "40/5400+30:1800+30"]

1. c4 {[%emt 0:00:00]} c5 {[%emt 0:00:02]} 2. g3 {[%emt 0:00:00]} g6 {[%emt 0:00:07]} 3. Bg2 {[%emt 0:00:00]} Bg7 {[%emt 0:00:06]} 4. Nc3 {[%emt 0:00:06]} Nc6 {[%emt 0:00:05]} 5. e4 {[%emt 0:04:53]} e6 {[%emt 0:02:58]} 6. Nge2 {[%emt 0:00:35]} Nge7 {[%emt 0:00:13]} 7. d3 {[%emt 0:01:16]} a6 {[%emt 0:10:56]} 8. Rb1 {[%emt 0:12:48]} O-O {[%emt 0:06:29]} 9. O-O {[%emt 0:01:41]} b5 {[%emt 0:01:56]} 10. cxb5 {[%emt 0:03:33]} axb5 {[%emt 0:00:06]} 11. Nxb5 {[%emt 0:00:07]} Rxa2 {[%emt 0:00:27]} 12. Na3 {[%emt 0:05:36]} Na5 {[%emt 0:20:30]} 13. Qc2 {[%emt 0:23:42]} Nec6 {[%emt 0:05:58]} 14. Nc3 {[%emt 0:21:13]} Nb4 {[%emt 0:21:43]} 15. Qd1 {[%emt 0:03:12]} Bxc3 {[%emt 0:04:19]} 16. bxc3 {[%emt 0:00:14]} Nbc6 {[%emt 0:00:02]} 17. Nb5 {[%emt 0:07:04]} d6 {[%emt 0:07:29]} 18. Bh6 {[%emt 0:00:51]} Re8 {[%emt 0:00:05]} 19. d4 {[%emt 0:04:26]} cxd4 {[%emt 0:00:54]} 20. cxd4 {[%emt 0:00:20]} Ba6 {[%emt 0:00:26]} 21. Re1 {[%emt 0:01:29]} Qf6 {[%emt 0:04:22]} 22. f4 {[%emt 0:04:14]} Bxb5 {[%emt 0:01:02]} 23. e5 {[%emt 0:00:41]} dxe5 {[%emt 0:02:49]} 24. dxe5 {[%emt 0:01:43]} Qe7 {[%emt 0:06:21]} 25. Rxb5 {[%emt 0:00:05]} Rd8 {[%emt 0:01:38]} 26. Qc1 {[%emt 0:01:16]} Rdd2 {[%emt 0:00:54]} 27. Bxc6 {[%emt 0:00:35]} Nxc6 {[%emt 0:00:25]} 28. Qxc6 {[%emt 0:00:25]} Qa7+ {[%emt 0:00:03]} 29. Qc5 {[%emt 0:00:48]} Rg2+ {[%emt 0:00:07]} 30. Kh1 {[%emt 0:00:02]} Rxh2+ {[%emt 0:00:06]} 31. Kg1 {[%emt 0:00:06]} Rh1+ {[%emt 0:02:08]} 32. Kxh1 {[%emt 0:01:16]} Qa8+ {[%emt 0:00:01]} 0-1

[Event "Teplice Open 2019"]
[Site "Teplice"]
[Date "2019.06.15"]
[Round "1.11"]
[White "Romanov, Evgeny"]
[Black "Lys, Josef"]
[Result "1-0"]
[ECO "A20"]
[WhiteElo "2577"]
[BlackElo "2108"]
[Annotator "ChessBase"]
[PlyCount "31"]
[EventDate "2019.06.15"]
[EventType "swiss"]
[EventCountry "CZE"]
[SourceTitle "playchess.com"]
[Source "ChessBase"]
[SourceQuality "1"]
[TimeControl "40/5400+30:1800+30"]

1. c4 {[%emt 0:01:25]} e5 {[%emt 0:00:00]} 2. g3 {[%emt 0:00:10]} c6 {[%emt 0:00:01]} 3. Nf3 {[%emt 0:00:12]} Qc7 {[%emt 0:00:34]} 4. Nc3 {[%emt 0:01:41]} d6 {[%emt 0:00:16]} 5. d4 {[%emt 0:00:39]} Nf6 {[%emt 0:00:40]} 6. Bg2 {[%emt 0:05:23]} Bg4 {[%emt 0:02:56]} 7. O-O {[%emt 0:00:48]} Be7 {[%emt 0:01:11]} 8. h3 {[%emt 0:04:10]} Bxf3 {[%emt 0:01:55]} 9. exf3 {[%emt 0:00:50]} O-O {[%emt 0:00:20]} 10. f4 {[%emt 0:01:13]} exd4 {[%emt 0:02:50]} 11. Qxd4 {[%emt 0:01:52]} Nbd7 {[%emt 0:01:40]} 12. g4 {[%emt 0:00:40]} a5 {[%emt 0:02:31]} 13. g5 {[%emt 0:02:05]} Ne8 {[%emt 0:00:18]} 14. Re1 {[%emt 0:00:33]} Nc5 {[%emt 0:01:11]} 15. Qe3 {[%emt 0:11:56]} Bd8 {[%emt 0:00:56]} 16. Qxe8 {[%emt 0:00:27]} 1-0

[Event "Teplice Open 2019"]
[Site "Teplice"]
[Date "2019.06.15"]
[Round "1.12"]
[White "Horak, Ales"]
[Black "Epishin, Vladimir"]
[Result "0-1"]
[ECO "B06"]
[WhiteElo "2106"]
[BlackElo "2564"]
[Annotator "RC"]
[PlyCount "88"]
[EventDate "2019.06.15"]
[EventType "swiss"]
[EventCountry "CZE"]
[SourceTitle "playchess.com"]
[Source "ChessBase"]
[SourceQuality "1"]
[TimeControl "40/5400+30:1800+30"]

1. e4 {[%emt 0:00:00]} g6 {[%emt 0:00:44]} 2. d4 {[%emt 0:00:34]} Bg7 {[%emt 0:00:00]} 3. Nf3 {[%emt 0:01:12]} d6 {[%emt 0:00:29]} 4. Bc4 {[%emt 0:02:31]} Nf6 {[%emt 0:00:31]} 5. e5 {[%emt 0:01:59]} dxe5 {[%emt 0:00:43]} 6. Nxe5 {[%emt 0:00:25]} O-O {[%emt 0:00:18]} 7. O-O {[%emt 0:01:15]} Nbd7 {[%emt 0:03:35]} 8. Bg5 {[%emt 0:17:21]} Nxe5 {[%emt 0:07:34]} 9. dxe5 {[%emt 0:00:10]} Ne4 {[%emt 0:00:25]} 10. Qxd8 {[%emt 0:03:57]} Rxd8 {[%emt 0:01:47]} 11. Bxe7 {[%emt 0:02:09]} Re8 {[%emt 0:00:19]} 12. Bf6 {[%emt 0:02:45]} Nxf6 {[%emt 0:00:30]} 13. exf6 {[%emt 0:00:17]} Bxf6 {[%emt 0:00:07]} 14. Nc3 {[%emt 0:01:25]} Bf5 {[%emt 0:02:26]} 15. Nd5 {[%emt 0:03:07]} Be5 {[%emt 0:02:38]} 16. Ne3 {[%emt 0:03:08]} Be4 {[%emt 0:01:10]} 17. c3 {[%emt 0:00:42]} Rad8 {[%emt 0:02:56]} 18. Rad1 {[%emt 0:02:25]} Bc6 {[%emt 0:03:32]} 19. Rxd8 {[%emt 0:07:30]} Rxd8 {[%emt 0:00:08]} 20. Rd1 {[%emt 0:00:05]} Rb8 {[%emt 0:01:08]} 21. Nd5 {[%emt 0:02:22]} Kg7 {[%emt 0:01:43]} 22. Ne7 {[%emt 0:02:58]} Be8 {[%emt 0:00:53]} 23. Nd5 {[%emt 0:01:55]} a5 {[%emt 0:01:17]} 24. Re1 {[%emt 0:06:57]} Bd6 {[%emt 0:00:12]} 25. a3 {[%emt 0:06:46]} b5 {[%emt 0:01:09]} 26. Ba2 {[%emt 0:00:24]} Bd7 {[%emt 0:01:05]} 27. Ne3 {[%emt 0:00:37]} f5 {[%emt 0:02:17]} 28. Nc2 {[%emt 0:02:48]} Rd8 {[%emt 0:04:08]} 29. h4 {[%emt 0:03:54]} Kf6 {[%emt 0:00:44]} 30. Ne3 {[%emt 0:01:46]} c6 {[%emt 0:00:38]} 31. Rd1 {[%emt 0:02:57]} Bc7 {[%emt 0:00:48]} 32. Kf1 {[%emt 0:01:01]} a4 {[%emt 0:03:49]} 33. Bb1 {[%emt 0:03:15]} f4 {[%emt 0:03:03]} 34. Nc2 {[%emt 0:01:00]} Bf5 {[%emt 0:00:45]} 35. Rc1 {[%emt 0:00:50]} Bb6 {[%emt 0:00:42]} 36. Nd4 {[%emt 0:04:46]} Bxb1 {[%emt 0:01:09]} 37. Rxb1 {[%emt 0:00:08]} Bxd4 {[%emt 0:00:08]} 38. cxd4 {[%emt 0:00:04]} Rxd4 {[%emt 0:00:08]} 39. Ke2 {[%emt 0:00:20]} c5 {[%emt 0:00:33]} 40. Rc1 {[%emt 0:01:12]} c4 {[%emt 0:00:10]} 41. Rc2 {[%emt 0:30:22]} Ke5 {[%emt 0:30:37]} 42. Kf3 {[%emt 0:01:27]} h5 {[%emt 0:01:36]} 43. Re2+ {[%emt 0:00:13]} Kf5 {[%emt 0:00:24]} 44. g3 {[%emt 0:01:35]} Rd3+ {[%emt 0:00:14]} 0-1

[Event "Teplice Open 2019"]
[Site "Teplice"]
[Date "2019.06.15"]
[Round "1.14"]
[White "Novotny, Martin"]
[Black "Vorobiov, Evgeny E."]
[Result "0-1"]
[ECO "D21"]
[WhiteElo "2089"]
[BlackElo "2556"]
[Annotator "RC"]
[PlyCount "78"]
[EventDate "2019.06.15"]
[EventType "swiss"]
[EventCountry "CZE"]
[SourceTitle "playchess.com"]
[Source "ChessBase"]
[SourceQuality "1"]
[TimeControl "40/5400+30:1800+30"]

1. d4 {[%emt 0:00:00]} d5 {[%emt 0:00:58]} 2. c4 {[%emt 0:00:00]} dxc4 {[%emt 0:00:04]} 3. Nf3 {[%emt 0:01:47]} a6 {[%emt 0:00:06]} 4. a4 {[%emt 0:02:05]} Nc6 {[%emt 0:02:43]} 5. e3 {[%emt 0:03:43]} Bg4 {[%emt 0:00:31]} 6. Bxc4 {[%emt 0:03:18]} e6 {[%emt 0:00:10]} 7. O-O {[%emt 0:01:34]} Nf6 {[%emt 0:00:21]} 8. Nbd2 {[%emt 0:02:24]} Be7 {[%emt 0:01:42]} 9. b3 {[%emt 0:01:08]} O-O {[%emt 0:00:45]} 10. Bb2 {[%emt 0:01:09]} Nb4 {[%emt 0:01:27]} 11. Rc1 {[%emt 0:03:24]} Rc8 {[%emt 0:05:03]} 12. Be2 {[%emt 0:07:08]} c5 {[%emt 0:20:27]} 13. Nc4 {[%emt 0:07:56]} Nfd5 {[%emt 0:05:36]} 14. dxc5 {[%emt 0:11:33]} Bxc5 {[%emt 0:02:40]} 15. Nd4 {[%emt 0:00:37]} Bxe2 {[%emt 0:03:20]} 16. Qxe2 {[%emt 0:00:09]} Qe7 {[%emt 0:02:30]} 17. Rfd1 {[%emt 0:02:45]} Rfd8 {[%emt 0:01:44]} 18. Qg4 {[%emt 0:10:24]} Nf6 {[%emt 0:04:25]} 19. Qf3 {[%emt 0:01:51]} Rc7 {[%emt 0:06:11]} 20. a5 {[%emt 0:04:16]} Rcd7 {[%emt 0:04:16]} 21. h3 {[%emt 0:07:42]} h6 {[%emt 0:03:12]} 22. g4 {[%emt 0:11:02]} Nh7 {[%emt 0:05:36]} 23. Kg2 {[%emt 0:01:21]} Nf8 {[%emt 0:05:01]} 24. Ba3 {[%emt 0:04:11]} Ng6 {[%emt 0:02:24]} 25. Kh2 {[%emt 0:03:43]} Rd5 {[%emt 0:04:10]} 26. Nb6 {[%emt 0:02:33]} Bxb6 {[%emt 0:01:20]} 27. axb6 {[%emt 0:00:05]} Qd6+ {[%emt 0:00:29]} 28. Kg1 {[%emt 0:01:49]} Qxb6 {[%emt 0:01:21]} 29. Bb2 {[%emt 0:02:39]} Ne5 {[%emt 0:05:23]} 30. Qe2 {[%emt 0:01:42]} Ned3 {[%emt 0:01:12]} 31. Rxd3 {[%emt 0:00:31]} Nxd3 {[%emt 0:00:06]} 32. Qxd3 {[%emt 0:00:06]} e5 {[%emt 0:00:03]} 33. Qc4 {[%emt 0:00:38]} exd4 {[%emt 0:00:57]} 34. Bxd4 {[%emt 0:00:03]} Qg6 {[%emt 0:01:34]} 35. Kh2 {[%emt 0:00:38]} Qe4 {[%emt 0:02:29]} 36. Qc3 {[%emt 0:01:12]} Qf3 {[%emt 0:01:43]} 37. Rc2 {[%emt 0:00:31]} h5 {[%emt 0:00:33]} 38. e4 {[%emt 0:00:47]} Qf4+ {[%emt 0:00:19]} 39. Kg1 {[%emt 0:00:23]} Rxd4 {[%emt 0:00:17]} 0-1

[Event "Teplice Open 2019"]
[Site "Teplice"]
[Date "2019.06.15"]
[Round "1.16"]
[White "Janda, Zdenek"]
[Black "Babula, Vlastimil"]
[Result "0-1"]
[ECO "A48"]
[WhiteElo "2082"]
[BlackElo "2550"]
[Annotator "RC"]
[PlyCount "104"]
[EventDate "2019.06.15"]
[EventType "swiss"]
[EventCountry "CZE"]
[SourceTitle "playchess.com"]
[Source "ChessBase"]
[SourceQuality "1"]
[TimeControl "40/5400+30:1800+30"]

1. d4 {[%emt 0:00:00]} Nf6 {[%emt 0:00:00]} 2. Nf3 {[%emt 0:00:00]} g6 {[%emt 0:00:12]} 3. Bf4 {[%emt 0:00:12]} Bg7 {[%emt 0:00:37]} 4. e3 {[%emt 0:00:15]} d6 {[%emt 0:01:08]} 5. Bc4 {[%emt 0:01:32]} O-O {[%emt 0:04:26]} 6. c3 {[%emt 0:01:25]} Nbd7 {[%emt 0:01:37]} 7. h3 {[%emt 0:02:19]} b6 {[%emt 0:09:18]} 8. O-O {[%emt 0:03:41]} Bb7 {[%emt 0:00:11]} 9. Nbd2 {[%emt 0:00:10]} Qe8 {[%emt 0:03:50]} 10. Bh2 {[%emt 0:08:19]} e5 {[%emt 0:00:39]} 11. dxe5 {[%emt 0:02:47]} dxe5 {[%emt 0:01:12]} 12. Qe2 {[%emt 0:01:32]} a6 {[%emt 0:05:20]} 13. Rfd1 {[%emt 0:09:43]} e4 {[%emt 0:04:19]} 14. Ne1 {[%emt 0:06:40]} Ne5 {[%emt 0:09:02]} 15. a4 {[%emt 0:06:47]} Nfd7 {[%emt 0:03:12]} 16. Nb3 {[%emt 0:02:10]} c6 {[%emt 0:11:13]} 17. Nd2 {[%emt 0:05:12]} c5 {[%emt 0:02:00]} 18. Bb3 {[%emt 0:03:39]} Qe7 {[%emt 0:06:22]} 19. Nc4 {[%emt 0:02:17]} Nxc4 {[%emt 0:00:16]} 20. Bxc4 {[%emt 0:00:07]} Be5 {[%emt 0:00:42]} 21. Bxe5 {[%emt 0:02:38]} Nxe5 {[%emt 0:00:07]} 22. Bd5 {[%emt 0:00:19]} Rfd8 {[%emt 0:07:44]} 23. Bxb7 {[%emt 0:03:32]} Qxb7 {[%emt 0:00:05]} 24. Rxd8+ {[%emt 0:01:30]} Rxd8 {[%emt 0:00:03]} 25. Rd1 {[%emt 0:00:15]} Rd5 {[%emt 0:06:08]} 26. f4 {[%emt 0:04:28]} Nc4 {[%emt 0:03:13]} 27. Rxd5 {[%emt 0:07:42]} Qxd5 {[%emt 0:00:04]} 28. Kf2 {[%emt 0:00:24]} f5 {[%emt 0:08:25]} 29. g4 {[%emt 0:03:51]} Qd2 {[%emt 0:04:43]} 30. b3 {[%emt 0:11:00]} Qxe2+ {[%emt 0:00:11]} 31. Kxe2 {[%emt 0:00:07]} Na5 {[%emt 0:00:09]} 32. b4 {[%emt 0:01:05]} Nc4 {[%emt 0:00:31]} 33. gxf5 {[%emt 0:03:56]} gxf5 {[%emt 0:00:05]} 34. Ng2 {[%emt 0:00:13]} Kf7 {[%emt 0:01:24]} 35. Kd1 {[%emt 0:05:14]} cxb4 {[%emt 0:02:39]} 36. Kc2 {[%emt 0:00:23]} bxc3 {[%emt 0:01:45]} 37. Kxc3 {[%emt 0:00:10]} Na5 {[%emt 0:01:56]} 38. Ne1 {[%emt 0:01:24]} Ke6 {[%emt 0:00:55]} 39. Nc2 {[%emt 0:00:29]} Nc6 {[%emt 0:00:15]} 40. Kc4 {[%emt 0:01:03]} Kd6 {[%emt 0:00:07]} 41. Na3 {[%emt 0:02:13]} Na5+ {[%emt 0:03:39]} 42. Kd4 {[%emt 0:01:27]} h6 {[%emt 0:02:21]} 43. Nc2 {[%emt 0:00:46]} b5 {[%emt 0:01:04]} 44. axb5 {[%emt 0:02:47]} axb5 {[%emt 0:00:04]} 45. Kc3 {[%emt 0:00:13]} Nc6 {[%emt 0:01:23]} 46. Na1 {[%emt 0:01:27]} Ke6 {[%emt 0:07:23]} 47. Kb3 {[%emt 0:02:07]} Kd5 {[%emt 0:03:57]} 48. Kc3 {[%emt 0:19:40]} b4+ {[%emt 0:00:57]} 49. Kb3 {[%emt 0:00:46]} Kc5 {[%emt 0:00:26]} 50. Nc2 {[%emt 0:01:53]} Kb5 {[%emt 0:01:44]} 51. Ne1 {[%emt 0:01:42]} Na5+ {[%emt 0:00:22]} 52. Kc2 {[%emt 0:00:53]} Ka4 {[%emt 0:00:43]} 0-1

[Event "Teplice Open 2019"]
[Site "Teplice"]
[Date "2019.06.15"]
[Round "1.17"]
[White "Plat, Vojtech"]
[Black "Mulenko, Alexander"]
[Result "1-0"]
[ECO "B08"]
[WhiteElo "2547"]
[BlackElo "2075"]
[Annotator "ChessBase"]
[PlyCount "75"]
[EventDate "2019.06.15"]
[EventType "swiss"]
[EventCountry "CZE"]
[SourceTitle "playchess.com"]
[Source "ChessBase"]
[SourceQuality "1"]
[TimeControl "40/5400+30:1800+30"]

1. e4 {[%emt 0:00:08]} Nf6 {[%emt 0:00:00]} 2. e5 {[%emt 0:00:09]} Nd5 {[%emt 0:00:01]} 3. d4 {[%emt 0:01:02]} d6 {[%emt 0:00:08]} 4. exd6 {[%emt 0:00:18]} cxd6 {[%emt 0:01:01]} 5. Nf3 {[%emt 0:00:05]} g6 {[%emt 0:01:52]} 6. a4 {[%emt 0:01:21]} Bg7 {[%emt 0:00:48]} 7. Bc4 {[%emt 0:01:50]} Nf6 {[%emt 0:02:50]} 8. Nc3 {[%emt 0:01:34]} d5 {[%emt 0:01:01]} 9. Bb5+ {[%emt 0:00:05]} Bd7 {[%emt 0:00:35]} 10. Ne5 {[%emt 0:00:08]} O-O {[%emt 0:04:17]} 11. O-O {[%emt 0:02:18]} Nc6 {[%emt 0:05:14]} 12. Re1 {[%emt 0:01:19]} Rc8 {[%emt 0:01:44]} 13. Bg5 {[%emt 0:01:04]} a6 {[%emt 0:01:23]} 14. Bf1 {[%emt 0:00:44]} Bf5 {[%emt 0:08:03]} 15. Nxc6 {[%emt 0:01:18]} Rxc6 {[%emt 0:00:42]} 16. Ra3 {[%emt 0:00:10]} h6 {[%emt 0:06:23]} 17. Bf4 {[%emt 0:00:38]} Ne4 {[%emt 0:03:14]} 18. Nxe4 {[%emt 0:00:10]} Bxe4 {[%emt 0:00:19]} 19. c3 {[%emt 0:00:06]} g5 {[%emt 0:01:55]} 20. Bg3 {[%emt 0:00:14]} Bg6 {[%emt 0:04:39]} 21. Rb3 {[%emt 0:02:04]} Qd7 {[%emt 0:06:09]} 22. Rb4 {[%emt 0:00:13]} a5 {[%emt 0:08:56]} 23. Rb5 {[%emt 0:00:34]} b6 {[%emt 0:00:43]} 24. Qb3 {[%emt 0:01:21]} e6 {[%emt 0:00:38]} 25. Rxb6 {[%emt 0:01:24]} Rxb6 {[%emt 0:00:17]} 26. Qxb6 {[%emt 0:00:05]} Qxa4 {[%emt 0:00:40]} 27. Bd6 {[%emt 0:00:13]} Ra8 {[%emt 0:04:27]} 28. Bb5 {[%emt 0:02:51]} Qb3 {[%emt 0:01:33]} 29. Qb7 {[%emt 0:04:30]} Rd8 {[%emt 0:03:12]} 30. Be7 {[%emt 0:01:12]} Re8 {[%emt 0:00:46]} 31. Bb4 {[%emt 0:01:25]} axb4 {[%emt 0:02:44]} 32. Bxe8 {[%emt 0:00:06]} Qxb2 {[%emt 0:00:21]} 33. Qxb4 {[%emt 0:00:08]} Qxb4 {[%emt 0:05:25]} 34. cxb4 {[%emt 0:00:05]} Bxd4 {[%emt 0:00:07]} 35. b5 {[%emt 0:00:15]} Kf8 {[%emt 0:00:52]} 36. Bc6 {[%emt 0:05:09]} Be4 {[%emt 0:02:43]} 37. Rd1 {[%emt 0:00:03]} e5 {[%emt 0:04:14]} 38. Rxd4 {[%emt 0:00:33]} 1-0

[Event "Teplice Open 2019"]
[Site "Teplice"]
[Date "2019.06.15"]
[Round "1.19"]
[White "Dragnev, Valentin"]
[Black "Fraczek, Dariusz"]
[Result "1-0"]
[ECO "E60"]
[WhiteElo "2521"]
[BlackElo "2066"]
[Annotator "ChessBase"]
[PlyCount "47"]
[EventDate "2019.06.15"]
[EventType "swiss"]
[EventCountry "CZE"]
[SourceTitle "playchess.com"]
[Source "ChessBase"]
[SourceQuality "1"]
[TimeControl "40/5400+30:1800+30"]

1. Nf3 {[%emt 0:00:00]} Nf6 {[%emt 0:00:19]} 2. b3 {[%emt 0:00:32]} g6 {[%emt 0:00:18]} 3. Bb2 {[%emt 0:00:15]} Bg7 {[%emt 0:00:08]} 4. e3 {[%emt 0:01:00]} O-O {[%emt 0:00:40]} 5. d4 {[%emt 0:00:10]} d6 {[%emt 0:01:11]} 6. Be2 {[%emt 0:07:00]} Nbd7 {[%emt 0:02:18]} 7. O-O {[%emt 0:01:23]} e5 {[%emt 0:00:42]} 8. dxe5 {[%emt 0:00:57]} Ng4 {[%emt 0:00:31]} 9. c4 {[%emt 0:00:19]} Ngxe5 {[%emt 0:05:56]} 10. Nc3 {[%emt 0:00:09]} Nxf3+ {[%emt 0:14:29]} 11. Bxf3 {[%emt 0:00:27]} Ne5 {[%emt 0:00:51]} 12. Be2 {[%emt 0:00:06]} Qh4 {[%emt 0:03:53]} 13. Qd2 {[%emt 0:05:06]} Bg4 {[%emt 0:18:19]} 14. f3 {[%emt 0:03:34]} Be6 {[%emt 0:07:10]} 15. f4 {[%emt 0:11:15]} Ng4 {[%emt 0:15:37]} 16. h3 {[%emt 0:03:44]} Nh6 {[%emt 0:00:59]} 17. Bf3 {[%emt 0:01:02]} c6 {[%emt 0:06:13]} 18. Ne4 {[%emt 0:09:58]} Nf5 {[%emt 0:01:16]} 19. Bxg7 {[%emt 0:00:34]} Kxg7 {[%emt 0:10:35]} 20. g4 {[%emt 0:05:07]} Nh6 {[%emt 0:00:00]} 21. Qd4+ {[%emt 0:19:56]} f6 {[%emt 0:00:00]} 22. Qxd6 {[%emt 0:00:40]} Rae8 {[%emt 0:01:25]} 23. Kg2 {[%emt 0:03:18]} Bxg4 {[%emt 0:03:38]} 24. hxg4 {[%emt 0:00:32]} 1-0

[Event "Teplice Open 2019"]
[Site "Teplice"]
[Date "2019.06.15"]
[Round "1.20"]
[White "Skurniak, Szymon"]
[Black "Ali Marandi, Cemil Can"]
[Result "0-1"]
[ECO "C26"]
[WhiteElo "2066"]
[BlackElo "2520"]
[Annotator "ChessBase"]
[PlyCount "52"]
[EventDate "2019.06.15"]
[EventType "swiss"]
[EventCountry "CZE"]
[SourceTitle "playchess.com"]
[Source "ChessBase"]
[SourceQuality "1"]
[TimeControl "40/5400+30:1800+30"]

1. e4 {[%emt 0:00:00]} e5 {[%emt 0:00:09]} 2. Nc3 {[%emt 0:02:33]} Nf6 {[%emt 0:03:06]} 3. g3 {[%emt 0:00:08]} c6 {[%emt 0:00:35]} 4. Nf3 {[%emt 0:05:00]} d5 {[%emt 0:11:48]} 5. Nxe5 {[%emt 0:03:54]} dxe4 {[%emt 0:00:00]} 6. d4 {[%emt 0:00:52]} Bb4 {[%emt 0:13:32]} 7. Bg2 {[%emt 0:10:51]} Bf5 {[%emt 0:01:41]} 8. O-O {[%emt 0:03:50]} h6 {[%emt 0:03:59]} 9. f3 {[%emt 0:07:44]} exf3 {[%emt 0:01:03]} 10. Rxf3 {[%emt 0:00:31]} Be6 {[%emt 0:00:33]} 11. Ne2 {[%emt 0:17:05]} Bd5 {[%emt 0:01:11]} 12. Rf1 {[%emt 0:00:41]} Bxg2 {[%emt 0:02:27]} 13. Kxg2 {[%emt 0:00:02]} O-O {[%emt 0:01:33]} 14. Nf4 {[%emt 0:05:03]} Nbd7 {[%emt 0:04:45]} 15. c3 {[%emt 0:00:19]} Bd6 {[%emt 0:00:46]} 16. Nxd7 {[%emt 0:11:02]} Qxd7 {[%emt 0:00:23]} 17. Nh5 {[%emt 0:00:24]} Ne4 {[%emt 0:03:49]} 18. Qf3 {[%emt 0:01:19]} f5 {[%emt 0:01:20]} 19. g4 {[%emt 0:04:00]} fxg4 {[%emt 0:11:15]} 20. Qxe4 {[%emt 0:01:02]} Rxf1 {[%emt 0:00:06]} 21. Kxf1 {[%emt 0:00:34]} Qf7+ {[%emt 0:00:09]} 22. Kg2 {[%emt 0:00:13]} Rf8 {[%emt 0:03:13]} 23. Be3 {[%emt 0:10:30]} Qxh5 {[%emt 0:00:20]} 24. Qe6+ {[%emt 0:00:06]} Kh7 {[%emt 0:00:36]} 25. Qxd6 {[%emt 0:00:53]} Qh3+ {[%emt 0:00:05]} 26. Kh1 {[%emt 0:00:04]} Rf1+ {[%emt 0:00:07]} 0-1

[Event "Teplice Open 2019"]
[Site "Teplice"]
[Date "2019.06.15"]
[Round "1.21"]
[White "Greenfeld, Alon"]
[Black "Domanski, Lukasz"]
[Result "1-0"]
[ECO "E68"]
[WhiteElo "2513"]
[BlackElo "2059"]
[Annotator "ChessBase"]
[PlyCount "45"]
[EventDate "2019.06.15"]
[EventType "swiss"]
[EventCountry "CZE"]
[SourceTitle "playchess.com"]
[Source "ChessBase"]
[SourceQuality "1"]
[TimeControl "40/5400+30:1800+30"]

1. d4 {[%emt 0:03:53]} d6 {[%emt 0:00:00]} 2. Nf3 {[%emt 0:00:58]} Nf6 {[%emt 0:00:00]} 3. g3 {[%emt 0:01:27]} g6 {[%emt 0:00:14]} 4. Bg2 {[%emt 0:00:25]} Bg7 {[%emt 0:00:12]} 5. c4 {[%emt 0:02:22]} O-O {[%emt 0:00:14]} 6. Nc3 {[%emt 0:00:14]} Nbd7 {[%emt 0:00:11]} 7. O-O {[%emt 0:03:20]} e5 {[%emt 0:00:28]} 8. e4 {[%emt 0:00:21]} exd4 {[%emt 0:00:07]} 9. Nxd4 {[%emt 0:00:04]} Re8 {[%emt 0:00:13]} 10. h3 {[%emt 0:03:52]} a6 {[%emt 0:00:51]} 11. Be3 {[%emt 0:02:29]} Rb8 {[%emt 0:00:52]} 12. b3 {[%emt 0:00:35]} c5 {[%emt 0:04:18]} 13. Nde2 {[%emt 0:00:08]} Ne5 {[%emt 0:01:03]} 14. f4 {[%emt 0:06:14]} Nc6 {[%emt 0:01:27]} 15. Qd2 {[%emt 0:00:12]} h5 {[%emt 0:21:02]} 16. Rad1 {[%emt 0:01:23]} Bf8 {[%emt 0:16:12]} 17. f5 {[%emt 0:08:12]} Kh7 {[%emt 0:12:12]} 18. Bg5 {[%emt 0:04:18]} Be7 {[%emt 0:00:58]} 19. Qf4 {[%emt 0:04:17]} Rf8 {[%emt 0:06:31]} 20. Bxf6 {[%emt 0:02:25]} Bxf6 {[%emt 0:00:14]} 21. Rxd6 {[%emt 0:01:07]} Qe7 {[%emt 0:01:03]} 22. fxg6+ {[%emt 0:00:17]} fxg6 {[%emt 0:00:15]} 23. Rxf6 {[%emt 0:01:36]} 1-0